[Event "ESP-chT 1st Division 2020"]
[Site "Padron"]
[Date "2020.10.04"]
[Round "2.3"]
[White "Quintin Navarro, Alberto"]
[Black "Hernando Rodrigo, Julio Antonio"]
[Result "1-0"]
[ECO "C17"]
[WhiteElo "2383"]
[BlackElo "2266"]
[Annotator "ChessBase"]
[PlyCount "135"]
[EventDate "2020.10.01"]
[EventType "team-tourn"]
[EventCountry "ESP"]
[SourceTitle "playchess.com"]
[Source "ChessBase"]
[SourceQuality "1"]
[TimeControl "5400+30"]

1. e4 {[%emt 0:00:00]} e6 {[%emt 0:00:00]} 2. d4 {[%emt 0:00:00]} d5 {[%emt 0:00:00]} 3. Nc3 {[%emt 0:00:00]} Bb4 {[%emt 0:00:00]} 4. e5 {[%emt 0:00:00]} c5 {[%emt 0:00:00]} 5. dxc5 {[%emt 0:00:00]} Ne7 {[%emt 0:00:28]} 6. Nf3 {[%emt 0:00:03]} Nd7 {[%emt 0:01:12]} 7. Bd3 {[%emt 0:00:19]} Nxc5 {[%emt 0:00:41]} 8. O-O {[%emt 0:00:10]} Nxd3 {[%emt 0:02:59]} 9. cxd3 {[%emt 0:00:07]} O-O {[%emt 0:00:57]} 10. a3 {[%emt 0:00:31]} Bxc3 {[%emt 0:04:22]} 11. bxc3 {[%emt 0:00:07]} Qc7 {[%emt 0:00:59]} 12. Bd2 {[%emt 0:00:59]} b6 {[%emt 0:01:26]} 13. Qe2 {[%emt 0:04:42]} Ba6 {[%emt 0:01:18]} 14. Rfe1 {[%emt 0:00:57]} Nc6 {[%emt 0:01:44]} 15. h4 {[%emt 0:09:24]} Rae8 {[%emt 0:11:03]} 16. Rac1 {[%emt 0:15:57]} f6 {[%emt 0:08:30]} 17. Bf4 {[%emt 0:04:36]} fxe5 {[%emt 0:01:19]} 18. Bxe5 {[%emt 0:00:20]} Qd8 {[%emt 0:02:56]} 19. c4 {[%emt 0:10:18]} dxc4 {[%emt 0:05:26]} 20. dxc4 {[%emt 0:00:30]} Nxe5 {[%emt 0:00:28]} 21. Qxe5 {[%emt 0:01:12]} Bb7 {[%emt 0:02:53]} 22. Ng5 {[%emt 0:02:02]} Rf5 {[%emt 0:01:06]} 23. Qg3 {[%emt 0:02:02]} Qc8 {[%emt 0:10:28]} 24. Re5 {[%emt 0:06:44]} Rxe5 {[%emt 0:05:38]} 25. Qxe5 {[%emt 0:00:08]} h6 {[%emt 0:00:34]} 26. Nh3 {[%emt 0:02:15]} Qc5 {[%emt 0:02:43]} 27. Qxc5 {[%emt 0:00:26]} bxc5 {[%emt 0:00:05]} 28. Nf4 {[%emt 0:00:17]} Kf7 {[%emt 0:03:36]} 29. Nd3 {[%emt 0:04:35]} Rc8 {[%emt 0:00:29]} 30. Re1 {[%emt 0:06:04]} Kf6 {[%emt 0:01:49]} 31. f3 {[%emt 0:05:42]} Rc6 {[%emt 0:02:18]} 32. Kf2 {[%emt 0:00:36]} Bc8 {[%emt 0:00:31]} 33. Re3 {[%emt 0:03:35]} Ke7 {[%emt 0:05:24]} 34. f4 {[%emt 0:02:00]} Rd6 {[%emt 0:07:55]} 35. Nxc5 {[%emt 0:02:33]} Rd4 {[%emt 0:00:27]} 36. Re4 {[%emt 0:00:35]} Rd2+ {[%emt 0:00:14]} 37. Kg3 {[%emt 0:00:33]} Kd6 {[%emt 0:04:25]} 38. Re5 {[%emt 0:00:35]} Rd4 {[%emt 0:01:50]} 39. Ne4+ {[%emt 0:01:38]} Kd7 {[%emt 0:00:15]} 40. c5 {[%emt 0:06:15]} Rd3+ {[%emt 0:00:27]} 41. Kg4 {[%emt 0:00:25]} Rxa3 {[%emt 0:00:53]} 42. Nd6 {[%emt 0:05:05]} Ba6 {[%emt 0:03:42]} 43. f5 {[%emt 0:00:22]} exf5+ {[%emt 0:00:29]} 44. Nxf5 {[%emt 0:00:16]} Ra2 {[%emt 0:01:40]} 45. g3 {[%emt 0:01:04]} Be2+ {[%emt 0:01:18]} 46. Kf4 {[%emt 0:00:09]} g6 {[%emt 0:03:56]} 47. c6+ {[%emt 0:02:46]} Kc8 {[%emt 0:01:21]} 48. Nd4 {[%emt 0:03:39]} Bd3 {[%emt 0:00:54]} 49. Re8+ {[%emt 0:00:30]} Kc7 {[%emt 0:00:11]} 50. Re7+ {[%emt 0:00:07]} Kd6 {[%emt 0:01:10]} 51. Rd7+ {[%emt 0:00:22]} Kc5 {[%emt 0:00:08]} 52. Ne6+ {[%emt 0:01:24]} Kxc6 {[%emt 0:00:17]} 53. Rxd3 {[%emt 0:00:04]} a5 {[%emt 0:00:09]} 54. Ke5 {[%emt 0:00:32]} a4 {[%emt 0:00:11]} 55. Rc3+ {[%emt 0:00:38]} Kb5 {[%emt 0:00:16]} 56. Nd4+ {[%emt 0:00:28]} Kb4 {[%emt 0:00:19]} 57. Rc6 {[%emt 0:00:13]} g5 {[%emt 0:00:17]} 58. Rxh6 {[%emt 0:00:43]} gxh4 {[%emt 0:00:07]} 59. gxh4 {[%emt 0:00:10]} Rh2 {[%emt 0:00:13]} 60. Rb6+ {[%emt 0:00:52]} Ka5 {[%emt 0:00:48]} 61. Rh6 {[%emt 0:00:51]} a3 {[%emt 0:00:14]} 62. Kd5 {[%emt 0:00:14]} Kb4 {[%emt 0:01:35]} 63. Rb6+ {[%emt 0:00:38]} Ka5 {[%emt 0:00:24]} 64. Kc6 {[%emt 0:01:07]} Rb2 {[%emt 0:01:39]} 65. Nb3+ {[%emt 0:00:24]} Ka4 {[%emt 0:00:05]} 66. Nc5+ {[%emt 0:00:05]} Ka5 {[%emt 0:00:03]} 67. Ra6+ {[%emt 0:00:05]} Kb4 {[%emt 0:00:25]} 68. Nd3+ {[%emt 0:00:07]} 1-0

[Event "ESP-chT 1st Division 2020"]
[Site "Padron"]
[Date "2020.10.04"]
[Round "2.4"]
[White "Hernando Rodrigo, Jose Maria"]
[Black "Bayo Milagro, Alvaro"]
[Result "1-0"]
[ECO "E42"]
[WhiteElo "2311"]
[BlackElo "2254"]
[Annotator "ChessBase"]
[PlyCount "115"]
[EventDate "2020.10.01"]
[EventType "team-tourn"]
[EventCountry "ESP"]
[SourceTitle "playchess.com"]
[Source "ChessBase"]
[SourceQuality "1"]
[TimeControl "5400+30"]

1. d4 {[%emt 0:00:00]} Nf6 {[%emt 0:00:00]} 2. c4 {[%emt 0:00:00]} e6 {[%emt 0:00:00]} 3. Nc3 {[%emt 0:00:29]} Bb4 {[%emt 0:00:00]} 4. e3 {[%emt 0:00:18]} c5 {[%emt 0:00:06]} 5. Nge2 {[%emt 0:03:11]} cxd4 {[%emt 0:01:00]} 6. exd4 {[%emt 0:00:10]} d5 {[%emt 0:00:35]} 7. a3 {[%emt 0:01:17]} Be7 {[%emt 0:00:24]} 8. c5 {[%emt 0:02:03]} O-O {[%emt 0:01:09]} 9. g3 {[%emt 0:02:07]} b6 {[%emt 0:00:19]} 10. b4 {[%emt 0:02:05]} bxc5 {[%emt 0:02:12]} 11. dxc5 {[%emt 0:01:23]} Ba6 {[%emt 0:01:19]} 12. Bg2 {[%emt 0:06:43]} Bc4 {[%emt 0:00:26]} 13. O-O {[%emt 0:09:29]} a5 {[%emt 0:19:58]} 14. Rb1 {[%emt 0:00:36]} Na6 {[%emt 0:01:31]} 15. Re1 {[%emt 0:15:36]} axb4 {[%emt 0:07:49]} 16. axb4 {[%emt 0:00:06]} Qb8 {[%emt 0:00:54]} 17. Bf4 {[%emt 0:05:58]} Qa7 {[%emt 0:46:28]} 18. Nd4 {[%emt 0:10:46]} Rfc8 {[%emt 0:01:45]} 19. Ndb5 {[%emt 0:12:45]} Qb7 {[%emt 0:00:53]} 20. Nd6 {[%emt 0:01:36]} Bxd6 {[%emt 0:00:06]} 21. Bxd6 {[%emt 0:00:11]} Ne8 {[%emt 0:00:16]} 22. Be5 {[%emt 0:04:02]} Nxb4 {[%emt 0:02:08]} 23. Qd4 {[%emt 0:00:53]} Ra7 {[%emt 0:02:21]} 24. c6 {[%emt 0:01:07]} Rxc6 {[%emt 0:02:02]} 25. Rxb4 {[%emt 0:00:17]} Qe7 {[%emt 0:03:19]} 26. Rb8 {[%emt 0:01:30]} Rd7 {[%emt 0:00:02]} 27. Bxg7 {[%emt 0:00:50]} Rd8 {[%emt 0:00:07]} 28. Rxd8 {[%emt 0:00:29]} Qxd8 {[%emt 0:00:02]} 29. Bh6 {[%emt 0:03:09]} Qf6 {[%emt 0:00:23]} 30. Qd2 {[%emt 0:04:45]} Rc8 {[%emt 0:01:24]} 31. Bf4 {[%emt 0:01:18]} Qg6 {[%emt 0:00:37]} 32. Bf1 {[%emt 0:01:56]} Ng7 {[%emt 0:02:03]} 33. Be5 {[%emt 0:02:55]} Nf5 {[%emt 0:00:20]} 34. Bxc4 {[%emt 0:01:37]} Rxc4 {[%emt 0:00:02]} 35. Nxd5 {[%emt 0:00:09]} exd5 {[%emt 0:00:34]} 36. Qxd5 {[%emt 0:00:02]} Rc8 {[%emt 0:00:28]} 37. Bb2 {[%emt 0:00:11]} h6 {[%emt 0:00:52]} 38. Qd7 {[%emt 0:00:56]} Rf8 {[%emt 0:01:01]} 39. Re8 {[%emt 0:00:33]} f6 {[%emt 0:02:50]} 40. Qe6+ {[%emt 0:00:23]} Kg7 {[%emt 0:00:11]} 41. Rxf8 {[%emt 0:00:37]} Kxf8 {[%emt 0:00:01]} 42. Qxf6+ {[%emt 0:00:14]} Qxf6 {[%emt 0:00:02]} 43. Bxf6 {[%emt 0:00:02]} Kf7 {[%emt 0:00:01]} 44. Bc3 {[%emt 0:00:15]} Kg6 {[%emt 0:00:05]} 45. Kg2 {[%emt 0:00:23]} Nd6 {[%emt 0:00:08]} 46. f4 {[%emt 0:00:38]} Ne4 {[%emt 0:00:27]} 47. Bb4 {[%emt 0:00:15]} Nf6 {[%emt 0:00:41]} 48. h3 {[%emt 0:00:31]} Nd5 {[%emt 0:00:49]} 49. Bd2 {[%emt 0:00:17]} h5 {[%emt 0:00:44]} 50. Kf3 {[%emt 0:00:30]} Kf6 {[%emt 0:00:30]} 51. g4 {[%emt 0:00:28]} Kg6 {[%emt 0:00:40]} 52. Bc1 {[%emt 0:00:35]} hxg4+ {[%emt 0:01:21]} 53. hxg4 {[%emt 0:00:05]} Nc3 {[%emt 0:00:44]} 54. f5+ {[%emt 0:00:54]} Kf7 {[%emt 0:00:02]} 55. g5 {[%emt 0:00:11]} Nd5 {[%emt 0:00:17]} 56. Ke4 {[%emt 0:01:03]} Ne7 {[%emt 0:00:13]} 57. Ba3 {[%emt 0:01:25]} Ng8 {[%emt 0:00:34]} 58. Ke5 {[%emt 0:00:30]} 1-0

[Event "ESP-chT 1st Division 2020"]
[Site "Padron"]
[Date "2020.10.04"]
[Round "2.5"]
[White "Vela Frago, Alberto"]
[Black "Korneev Leskova, Svyatoslav"]
[Result "0-1"]
[ECO "A06"]
[WhiteElo "2071"]
[BlackElo "2170"]
[Annotator "ChessBase"]
[PlyCount "138"]
[EventDate "2020.10.01"]
[EventType "team-tourn"]
[EventCountry "ESP"]
[SourceTitle "playchess.com"]
[Source "ChessBase"]
[SourceQuality "1"]
[TimeControl "5400+30"]

1. Nf3 {[%emt 0:00:00]} d5 {[%emt 0:00:00]} 2. g3 {[%emt 0:00:36]} c6 {[%emt 0:00:07]} 3. Bg2 {[%emt 0:00:36]} Nd7 {[%emt 0:00:28]} 4. c4 {[%emt 0:02:04]} dxc4 {[%emt 0:02:27]} 5. Qc2 {[%emt 0:00:46]} b5 {[%emt 0:03:46]} 6. b3 {[%emt 0:11:47]} cxb3 {[%emt 0:03:42]} 7. axb3 {[%emt 0:06:25]} Bb7 {[%emt 0:01:53]} 8. d4 {[%emt 0:00:10]} Ngf6 {[%emt 0:01:41]} 9. O-O {[%emt 0:01:10]} e6 {[%emt 0:00:31]} 10. Nc3 {[%emt 0:02:04]} a6 {[%emt 0:01:38]} 11. Rd1 {[%emt 0:02:58]} Be7 {[%emt 0:05:28]} 12. Bb2 {[%emt 0:06:25]} c5 {[%emt 0:14:34]} 13. Rac1 {[%emt 0:08:55]} O-O {[%emt 0:04:42]} 14. e3 {[%emt 0:01:45]} Rc8 {[%emt 0:03:40]} 15. Qe2 {[%emt 0:01:30]} Qb6 {[%emt 0:07:17]} 16. Nb1 {[%emt 0:01:09]} Bd5 {[%emt 0:05:28]} 17. Nbd2 {[%emt 0:01:30]} Qb7 {[%emt 0:01:22]} 18. Ne1 {[%emt 0:01:35]} Bxg2 {[%emt 0:01:03]} 19. Nxg2 {[%emt 0:00:01]} cxd4 {[%emt 0:00:50]} 20. Bxd4 {[%emt 0:01:13]} Rxc1 {[%emt 0:00:37]} 21. Rxc1 {[%emt 0:00:05]} Rc8 {[%emt 0:00:21]} 22. Qd1 {[%emt 0:02:56]} Rc7 {[%emt 0:03:12]} 23. Ne1 {[%emt 0:01:23]} Qc8 {[%emt 0:05:04]} 24. Nd3 {[%emt 0:02:27]} e5 {[%emt 0:02:49]} 25. Bb2 {[%emt 0:03:33]} e4 {[%emt 0:00:20]} 26. Rxc7 {[%emt 0:04:09]} Qxc7 {[%emt 0:00:06]} 27. Qc1 {[%emt 0:06:53]} Qxc1+ {[%emt 0:01:25]} 28. Nxc1 {[%emt 0:00:02]} Bb4 {[%emt 0:00:27]} 29. Nb1 {[%emt 0:00:33]} Nd5 {[%emt 0:02:44]} 30. Kf1 {[%emt 0:06:10]} f5 {[%emt 0:04:14]} 31. Ke2 {[%emt 0:01:36]} g6 {[%emt 0:01:06]} 32. Kd1 {[%emt 0:05:23]} Nc5 {[%emt 0:01:13]} 33. Ba3 {[%emt 0:02:03]} Kf7 {[%emt 0:05:27]} 34. Kc2 {[%emt 0:04:46]} Bxa3 {[%emt 0:03:10]} 35. Nxa3 {[%emt 0:00:07]} Nb4+ {[%emt 0:00:14]} 36. Kc3 {[%emt 0:05:39]} Nbd3 {[%emt 0:00:09]} 37. Nxd3 {[%emt 0:00:05]} Nxd3 {[%emt 0:00:04]} 38. Nc2 {[%emt 0:00:09]} Nxf2 {[%emt 0:05:32]} 39. Kb4 {[%emt 0:00:28]} Ke6 {[%emt 0:01:43]} 40. Ka5 {[%emt 0:00:50]} Kd5 {[%emt 0:01:21]} 41. Nb4+ {[%emt 0:02:05]} Kd6 {[%emt 0:00:08]} 42. Nc2 {[%emt 0:04:26]} Kc5 {[%emt 0:02:45]} 43. Kxa6 {[%emt 0:00:02]} Nd3 {[%emt 0:01:09]} 44. Ka5 {[%emt 0:00:37]} b4 {[%emt 0:00:25]} 45. Nd4 {[%emt 0:00:33]} Ne5 {[%emt 0:02:05]} 46. Ne6+ {[%emt 0:00:44]} Kd6 {[%emt 0:01:20]} 47. Nd4 {[%emt 0:01:23]} Ng4 {[%emt 0:00:11]} 48. Kxb4 {[%emt 0:00:46]} Nxe3 {[%emt 0:00:09]} 49. Ne2 {[%emt 0:00:07]} g5 {[%emt 0:02:01]} 50. Kc3 {[%emt 0:00:53]} Ke5 {[%emt 0:00:07]} 51. b4 {[%emt 0:01:03]} Nd5+ {[%emt 0:00:21]} 52. Kc4 {[%emt 0:00:18]} f4 {[%emt 0:00:14]} 53. gxf4+ {[%emt 0:00:06]} gxf4 {[%emt 0:00:08]} 54. b5 {[%emt 0:00:15]} f3 {[%emt 0:00:10]} 55. Ng3 {[%emt 0:00:56]} Nb6+ {[%emt 0:01:13]} 56. Kc3 {[%emt 0:00:29]} Na4+ {[%emt 0:01:22]} 57. Kd2 {[%emt 0:00:28]} Nb6 {[%emt 0:00:39]} 58. Ke3 {[%emt 0:00:15]} Nc4+ {[%emt 0:00:08]} 59. Kf2 {[%emt 0:00:13]} Kd4 {[%emt 0:01:07]} 60. h4 {[%emt 0:01:33]} Kd3 {[%emt 0:00:34]} 61. Nf5 {[%emt 0:00:19]} h5 {[%emt 0:01:08]} 62. Ng3 {[%emt 0:00:30]} Ne5 {[%emt 0:01:06]} 63. b6 {[%emt 0:00:58]} e3+ {[%emt 0:00:04]} 64. Ke1 {[%emt 0:00:20]} e2 {[%emt 0:00:44]} 65. b7 {[%emt 0:00:22]} Nc6 {[%emt 0:00:42]} 66. Nh1 {[%emt 0:00:44]} Ke3 {[%emt 0:00:10]} 67. Nf2 {[%emt 0:00:29]} Nd4 {[%emt 0:00:09]} 68. Nd1+ {[%emt 0:00:36]} exd1=Q+ {[%emt 0:00:08]} 69. Kxd1 {[%emt 0:00:01]} f2 {[%emt 0:00:18]} 0-1

[Event "ESP-chT 1st Division 2020"]
[Site "Padron"]
[Date "2020.10.04"]
[Round "2.6"]
[White "San Juan Morigosa, Isaura"]
[Black "Gracia Laguens, Asuncion"]
[Result "1-0"]
[ECO "E32"]
[WhiteElo "1766"]
[BlackElo "1414"]
[Annotator "NA"]
[PlyCount "47"]
[EventDate "2020.10.01"]
[EventType "team-tourn"]
[EventCountry "ESP"]
[SourceTitle "playchess.com"]
[Source "ChessBase"]
[SourceQuality "1"]
[TimeControl "5400+30"]

1. d4 {[%emt 0:00:00]} Nf6 {[%emt 0:00:00]} 2. c4 {[%emt 0:00:00]} e6 {[%emt 0:00:35]} 3. Nc3 {[%emt 0:00:00]} Bb4 {[%emt 0:00:44]} 4. Qc2 {[%emt 0:00:06]} O-O {[%emt 0:00:58]} 5. e3 {[%emt 0:00:15]} b6 {[%emt 0:03:26]} 6. Bd3 {[%emt 0:00:36]} Bb7 {[%emt 0:01:53]} 7. f3 {[%emt 0:00:10]} Bxc3+ {[%emt 0:04:28]} 8. bxc3 {[%emt 0:02:11]} d6 {[%emt 0:02:49]} 9. Nh3 {[%emt 0:01:15]} h6 {[%emt 0:04:13]} 10. O-O {[%emt 0:00:24]} e5 {[%emt 0:02:28]} 11. e4 {[%emt 0:11:31]} Nc6 {[%emt 0:05:16]} 12. d5 {[%emt 0:04:55]} Ne7 {[%emt 0:05:18]} 13. f4 {[%emt 0:07:26]} exf4 {[%emt 0:07:17]} 14. Nxf4 {[%emt 0:04:59]} Bc8 {[%emt 0:08:59]} 15. h3 {[%emt 0:00:46]} c6 {[%emt 0:01:56]} 16. Be3 {[%emt 0:04:41]} Bd7 {[%emt 0:02:46]} 17. Bd4 {[%emt 0:04:35]} Ne8 {[%emt 0:06:20]} 18. Nh5 {[%emt 0:07:23]} f6 {[%emt 0:03:00]} 19. Nf4 {[%emt 0:05:11]} c5 {[%emt 0:01:57]} 20. Be3 {[%emt 0:00:13]} f5 {[%emt 0:01:44]} 21. Rae1 {[%emt 0:06:23]} fxe4 {[%emt 0:03:43]} 22. Bxe4 {[%emt 0:00:10]} Bf5 {[%emt 0:02:49]} 23. Bxf5 {[%emt 0:03:27]} Nxf5 {[%emt 0:00:49]} 24. Ne6 {[%emt 0:00:19]} 1-0

[Event "ESP-chT 1st Division 2020"]
[Site "Padron"]
[Date "2020.10.04"]
[Round "2.7"]
[White "Ladron De Guevara Pinto, Paolo"]
[Black "Suarez Gomez, Julio"]
[Result "1/2-1/2"]
[ECO "D35"]
[WhiteElo "2433"]
[BlackElo "2426"]
[Annotator "ChessBase"]
[PlyCount "89"]
[EventDate "2020.10.01"]
[EventType "team-tourn"]
[EventCountry "ESP"]
[SourceTitle "playchess.com"]
[Source "ChessBase"]
[SourceQuality "1"]
[TimeControl "5400+30"]

1. d4 {[%emt 0:00:00]} d5 {[%emt 0:00:18]} 2. c4 {[%emt 0:00:00]} e6 {[%emt 0:00:22]} 3. Nc3 {[%emt 0:00:00]} Nf6 {[%emt 0:02:53]} 4. cxd5 {[%emt 0:00:44]} exd5 {[%emt 0:00:06]} 5. Bg5 {[%emt 0:00:12]} c6 {[%emt 0:00:06]} 6. e3 {[%emt 0:00:14]} Be7 {[%emt 0:02:07]} 7. Bd3 {[%emt 0:01:40]} Nbd7 {[%emt 0:00:23]} 8. Nf3 {[%emt 0:02:50]} h6 {[%emt 0:07:51]} 9. Bh4 {[%emt 0:01:21]} Nh5 {[%emt 0:01:19]} 10. Bxe7 {[%emt 0:02:27]} Qxe7 {[%emt 0:00:15]} 11. O-O {[%emt 0:01:51]} O-O {[%emt 0:00:42]} 12. Qc2 {[%emt 0:13:09]} Nhf6 {[%emt 0:02:41]} 13. Rab1 {[%emt 0:04:33]} Nb6 {[%emt 0:06:13]} 14. Rfe1 {[%emt 0:13:10]} Re8 {[%emt 0:15:06]} 15. Ne5 {[%emt 0:17:45]} c5 {[%emt 0:07:54]} 16. b3 {[%emt 0:11:50]} a6 {[%emt 0:12:56]} 17. Rbc1 {[%emt 0:02:53]} cxd4 {[%emt 0:05:14]} 18. exd4 {[%emt 0:00:06]} Be6 {[%emt 0:00:09]} 19. Qd2 {[%emt 0:09:01]} Rac8 {[%emt 0:02:20]} 20. Bb1 {[%emt 0:01:31]} Qd6 {[%emt 0:05:09]} 21. Qd3 {[%emt 0:02:52]} Rc7 {[%emt 0:03:56]} 22. Rcd1 {[%emt 0:07:44]} Nbd7 {[%emt 0:00:34]} 23. Re3 {[%emt 0:02:34]} Nf8 {[%emt 0:05:29]} 24. Ne2 {[%emt 0:00:50]} Rec8 {[%emt 0:01:42]} 25. f3 {[%emt 0:00:17]} b5 {[%emt 0:02:31]} 26. g4 {[%emt 0:00:31]} b4 {[%emt 0:03:32]} 27. Kg2 {[%emt 0:00:07]} Bd7 {[%emt 0:01:28]} 28. Qd2 {[%emt 0:02:01]} Ne6 {[%emt 0:03:37]} 29. Bf5 {[%emt 0:01:07]} Nf4+ {[%emt 0:03:22]} 30. Nxf4 {[%emt 0:00:50]} Bxf5 {[%emt 0:00:04]} 31. Re2 {[%emt 0:00:31]} Bh7 {[%emt 0:00:59]} 32. Nfd3 {[%emt 0:00:42]} Bxd3 {[%emt 0:01:15]} 33. Nxd3 {[%emt 0:00:14]} Rc3 {[%emt 0:00:43]} 34. Qf4 {[%emt 0:00:33]} Qxf4 {[%emt 0:01:09]} 35. Nxf4 {[%emt 0:00:04]} a5 {[%emt 0:00:52]} 36. Kf2 {[%emt 0:00:41]} Kf8 {[%emt 0:01:49]} 37. h4 {[%emt 0:00:27]} g5 {[%emt 0:00:17]} 38. hxg5 {[%emt 0:00:06]} hxg5 {[%emt 0:00:03]} 39. Ng2 {[%emt 0:00:55]} a4 {[%emt 0:01:16]} 40. bxa4 {[%emt 0:00:31]} Ra8 {[%emt 0:00:05]} 41. Re3 {[%emt 0:00:57]} Rxa4 {[%emt 0:00:17]} 42. Rd2 {[%emt 0:00:14]} Rc1 {[%emt 0:00:46]} 43. Re1 {[%emt 0:00:30]} Rc3 {[%emt 0:00:13]} 44. Re3 {[%emt 0:00:21]} Rc1 {[%emt 0:00:22]} 45. Re1 {[%emt 0:00:34]} 1/2-1/2

[Event "ESP-chT 1st Division 2020"]
[Site "Padron"]
[Date "2020.10.04"]
[Round "2.8"]
[White "Reinaldo Castineira, Roi"]
[Black "Alshameary Puente, Ismael"]
[Result "1-0"]
[ECO "A20"]
[WhiteElo "2469"]
[BlackElo "2373"]
[Annotator "ChessBase"]
[PlyCount "113"]
[EventDate "2020.10.01"]
[EventType "team-tourn"]
[EventCountry "ESP"]
[SourceTitle "playchess.com"]
[Source "ChessBase"]
[SourceQuality "1"]
[TimeControl "5400+30"]

1. c4 {[%emt 0:00:00]} e5 {[%emt 0:00:00]} 2. g3 {[%emt 0:00:06]} Nf6 {[%emt 0:00:00]} 3. Bg2 {[%emt 0:00:09]} d5 {[%emt 0:00:00]} 4. cxd5 {[%emt 0:00:09]} Nxd5 {[%emt 0:00:01]} 5. Nf3 {[%emt 0:00:13]} Nc6 {[%emt 0:00:05]} 6. O-O {[%emt 0:00:13]} Nb6 {[%emt 0:00:05]} 7. b3 {[%emt 0:01:21]} e4 {[%emt 0:01:31]} 8. Ne1 {[%emt 0:02:07]} f5 {[%emt 0:00:05]} 9. Nc3 {[%emt 0:07:29]} h5 {[%emt 0:01:03]} 10. d3 {[%emt 0:08:47]} Bb4 {[%emt 0:01:56]} 11. Bb2 {[%emt 0:06:09]} e3 {[%emt 0:05:01]} 12. Nc2 {[%emt 0:08:49]} exf2+ {[%emt 0:00:51]} 13. Rxf2 {[%emt 0:00:10]} Bc5 {[%emt 0:03:58]} 14. e3 {[%emt 0:00:23]} h4 {[%emt 0:03:13]} 15. d4 {[%emt 0:03:41]} hxg3 {[%emt 0:03:23]} 16. hxg3 {[%emt 0:00:13]} Bd6 {[%emt 0:00:25]} 17. Qf3 {[%emt 0:00:23]} Qg5 {[%emt 0:10:38]} 18. Ne2 {[%emt 0:00:13]} Bd7 {[%emt 0:22:39]} 19. a4 {[%emt 0:03:05]} a5 {[%emt 0:06:48]} 20. e4 {[%emt 0:00:26]} O-O-O {[%emt 0:05:09]} 21. e5 {[%emt 0:01:21]} Be7 {[%emt 0:00:35]} 22. Ne3 {[%emt 0:14:07]} Kb8 {[%emt 0:06:29]} 23. Rc1 {[%emt 0:07:55]} Qh6 {[%emt 0:02:36]} 24. d5 {[%emt 0:01:43]} g5 {[%emt 0:12:09]} 25. dxc6 {[%emt 0:21:36]} g4 {[%emt 0:11:03]} 26. Qf4 {[%emt 0:00:03]} Bg5 {[%emt 0:00:16]} 27. cxd7 {[%emt 0:00:05]} Bxf4 {[%emt 0:00:36]} 28. Nxf4 {[%emt 0:00:04]} Nxd7 {[%emt 0:00:16]} 29. e6 {[%emt 0:00:19]} Nf6 {[%emt 0:00:39]} 30. Nxf5 {[%emt 0:02:26]} Qh2+ {[%emt 0:01:03]} 31. Kf1 {[%emt 0:00:04]} Nh5 {[%emt 0:00:04]} 32. Bxh8 {[%emt 0:01:46]} Nxf4 {[%emt 0:01:07]} 33. e7 {[%emt 0:03:01]} Rxh8 {[%emt 0:00:22]} 34. Rxf4 {[%emt 0:00:05]} Re8 {[%emt 0:01:27]} 35. Rd1 {[%emt 0:00:45]} Qh8 {[%emt 0:00:22]} 36. Rxg4 {[%emt 0:05:09]} Qf6 {[%emt 0:01:28]} 37. Rf4 {[%emt 0:00:08]} Ka7 {[%emt 0:00:30]} 38. Nd6 {[%emt 0:00:48]} Qxe7 {[%emt 0:00:06]} 39. Nxe8 {[%emt 0:00:09]} Qxe8 {[%emt 0:00:03]} 40. Rd5 {[%emt 0:00:46]} c6 {[%emt 0:00:38]} 41. Rxa5+ {[%emt 0:01:11]} Kb6 {[%emt 0:00:07]} 42. Raf5 {[%emt 0:00:12]} Qe3 {[%emt 0:00:34]} 43. Rf3 {[%emt 0:00:25]} Qc1+ {[%emt 0:00:14]} 44. Kf2 {[%emt 0:00:03]} Qb2+ {[%emt 0:00:47]} 45. Kg1 {[%emt 0:00:07]} Qd4+ {[%emt 0:00:24]} 46. Rf2 {[%emt 0:00:39]} Qd1+ {[%emt 0:00:14]} 47. Kh2 {[%emt 0:00:21]} Qxb3 {[%emt 0:00:05]} 48. a5+ {[%emt 0:00:22]} Ka6 {[%emt 0:00:30]} 49. g4 {[%emt 0:00:15]} Qb4 {[%emt 0:00:49]} 50. R2f4 {[%emt 0:00:15]} Qd6 {[%emt 0:00:48]} 51. g5 {[%emt 0:00:22]} Qg6 {[%emt 0:00:06]} 52. Kg3 {[%emt 0:00:12]} Ka7 {[%emt 0:01:54]} 53. Be4 {[%emt 0:00:44]} Qd6 {[%emt 0:00:24]} 54. Kh4 {[%emt 0:00:37]} Qd2 {[%emt 0:00:51]} 55. g6 {[%emt 0:00:55]} Qh2+ {[%emt 0:00:22]} 56. Kg5 {[%emt 0:00:10]} Qg3+ {[%emt 0:00:33]} 57. Kf6 {[%emt 0:00:29]} 1-0

[Event "ESP-chT 1st Division 2020"]
[Site "Padron"]
[Date "2020.10.04"]
[Round "2.9"]
[White "Garrido Outon, Alex"]
[Black "Laiz Ibanez, Hector"]
[Result "1-0"]
[ECO "C11"]
[WhiteElo "2366"]
[BlackElo "2318"]
[Annotator "ChessBase"]
[PlyCount "95"]
[EventDate "2020.10.01"]
[EventType "team-tourn"]
[EventCountry "ESP"]
[SourceTitle "playchess.com"]
[Source "ChessBase"]
[SourceQuality "1"]
[TimeControl "5400+30"]

1. e4 {[%emt 0:00:00]} e6 {[%emt 0:00:00]} 2. d4 {[%emt 0:00:00]} d5 {[%emt 0:00:00]} 3. Nc3 {[%emt 0:01:08]} Nf6 {[%emt 0:00:00]} 4. Bg5 {[%emt 0:01:08]} dxe4 {[%emt 0:00:02]} 5. Nxe4 {[%emt 0:00:44]} Be7 {[%emt 0:00:08]} 6. Bxf6 {[%emt 0:02:29]} Bxf6 {[%emt 0:00:07]} 7. Nf3 {[%emt 0:01:34]} Nd7 {[%emt 0:00:11]} 8. Qe2 {[%emt 0:01:05]} Be7 {[%emt 0:09:59]} 9. O-O-O {[%emt 0:01:04]} O-O {[%emt 0:00:47]} 10. Kb1 {[%emt 0:06:14]} c5 {[%emt 0:01:49]} 11. Nxc5 {[%emt 0:04:44]} Nxc5 {[%emt 0:03:05]} 12. dxc5 {[%emt 0:02:16]} Qc7 {[%emt 0:01:54]} 13. Ne5 {[%emt 0:11:14]} Bxc5 {[%emt 0:15:26]} 14. g3 {[%emt 0:08:19]} b5 {[%emt 0:18:41]} 15. Bg2 {[%emt 0:06:59]} Rb8 {[%emt 0:00:05]} 16. f4 {[%emt 0:04:25]} Rb6 {[%emt 0:01:20]} 17. Be4 {[%emt 0:08:12]} a5 {[%emt 0:04:23]} 18. Qd3 {[%emt 0:07:26]} g6 {[%emt 0:06:12]} 19. h4 {[%emt 0:02:44]} f6 {[%emt 0:04:18]} 20. Nc6 {[%emt 0:14:23]} Rxc6 {[%emt 0:01:04]} 21. Bxc6 {[%emt 0:00:02]} Qxc6 {[%emt 0:00:10]} 22. h5 {[%emt 0:00:14]} g5 {[%emt 0:07:29]} 23. fxg5 {[%emt 0:01:14]} fxg5 {[%emt 0:00:54]} 24. h6 {[%emt 0:01:37]} e5 {[%emt 0:03:32]} 25. Rhf1 {[%emt 0:03:42]} Bg4 {[%emt 0:03:55]} 26. Rde1 {[%emt 0:02:32]} Rxf1 {[%emt 0:07:38]} 27. Rxf1 {[%emt 0:00:01]} Be7 {[%emt 0:00:26]} 28. Qe3 Qxh6 {[%emt 0:01:57]} 29. Qxe5 {[%emt 0:02:24]} Qe6 {[%emt 0:04:58]} 30. Qxb5 {[%emt 0:00:56]} Be2 {[%emt 0:01:38]} 31. Qe8+ {[%emt 0:01:15]} Kg7 {[%emt 0:00:04]} 32. Re1 {[%emt 0:01:24]} Kf6 {[%emt 0:02:37]} 33. a3 {[%emt 0:01:11]} Kf5 {[%emt 0:01:08]} 34. Qh8 {[%emt 0:01:13]} Bf6 {[%emt 0:00:26]} 35. Qxh7+ {[%emt 0:00:40]} Kg4 {[%emt 0:00:08]} 36. Qd3 {[%emt 0:01:47]} Qe5 {[%emt 0:00:53]} 37. Qxe2+ {[%emt 0:00:08]} Qxe2 {[%emt 0:00:06]} 38. Rxe2 {[%emt 0:00:03]} Kxg3 {[%emt 0:00:07]} 39. c4 {[%emt 0:00:52]} Kf3 {[%emt 0:00:11]} 40. Re8 {[%emt 0:00:59]} Bd4 {[%emt 0:00:08]} 41. b4 {[%emt 0:00:49]} axb4 {[%emt 0:00:43]} 42. axb4 {[%emt 0:00:10]} g4 {[%emt 0:00:03]} 43. Kc2 {[%emt 0:01:02]} g3 {[%emt 0:01:47]} 44. Kd3 {[%emt 0:00:07]} Bg7 {[%emt 0:00:09]} 45. Rg8 {[%emt 0:00:23]} Be5 {[%emt 0:00:04]} 46. c5 {[%emt 0:00:36]} g2 {[%emt 0:00:12]} 47. Rxg2 {[%emt 0:00:06]} Kxg2 {[%emt 0:00:04]} 48. Ke4 {[%emt 0:00:15]} 1-0